bitfinex/quotes_ETHUSD_20220309
["timestamp","ask_amount","ask_price","bid_price","bid_amount"]
[1646807410312,4.15885206,2710.3,2710.0,143.53932251]
[1646807410714,4.15885206,2710.3,2710.0,143.54552909]
[1646807411513,4.15885206,2710.3,2710.0,143.53932251]
[1646807411757,7.65885206,2710.3,2710.0,143.53932251]
[1646807411956,5.06195931,2710.3,2710.0,143.54552909]
[1646807412758,5.06195931,2710.3,2710.0,143.53932251]
[1646807413156,5.06195931,2710.3,2710.0,143.54532842]
[1646807414056,5.06195931,2710.3,2710.0,143.53932251]
[1646807414261,0.90310725,2710.3,2710.0,143.54532842]
[1646807414460,1.35439914,2710.5,2710.0,143.54532842]
[1646807414461,5.06195931,2710.2,2710.0,143.54532842]
[1646807415260,5.06195931,2710.2,2710.0,143.53932251]
[1646807415513,5.06195931,2710.2,2710.0,143.54532841]
[1646807415715,0.90310725,2710.1,2710.0,143.54532841]
[1646807415913,3.5,2710.1,2710.0,143.54532841]
[1646807416114,9.0132512,2710.2,2710.0,143.54532841]
[1646807416314,5.5132512,2710.2,2710.0,143.54532841]
[1646807416515,5.5132512,2710.2,2710.0,143.53932251]
[1646807417318,4.15885206,2710.2,2710.0,143.53932251]
[1646807417517,5.5132512,2710.2,2710.0,143.53932251]
[1646807417715,4.15885206,2710.2,2710.0,143.53932251]
[1646807417917,4.15885206,2710.2,2710.0,143.54531569]
[1646807418717,4.15885206,2710.2,2710.0,143.53932251]
[1646807419153,4.15885206,2710.2,2710.0,143.54531569]
[1646807419358,0.90451826,2710.1,2710.0,143.54531569]
[1646807419759,5.06337032,2710.1,2710.0,143.54531569]
[1646807419962,5.06337032,2710.1,2710.0,143.53932251]
[1646807423405,4.15885206,2710.1,2710.0,143.53932251]
[1646807425510,5.06337032,2710.1,2710.0,143.53932251]
[1646807425709,4.15885206,2710.1,2710.0,143.53932251]
[1646807426309,4.15885206,2710.1,2710.0,143.53789467]
[1646807428363,4.15745855,2710.1,2710.0,143.53789467]
[1646807428562,2.07942603,2710.1,2710.0,143.53789467]
[1646807428764,4.15745855,2710.1,2710.0,143.53789467]
[1646807430270,5.51185769,2710.1,2710.0,143.53789467]
[1646807430807,4.15745855,2710.1,2710.0,143.53789467]
[1646807431009,5.51185769,2710.1,2710.0,143.53789467]
[1646807431207,9.93502769,2710.1,2710.0,143.53789467]
[1646807431411,5.52562855,2710.1,2710.0,143.53789467]
[1646807433608,10.39215226,2710.1,2710.0,141.4871672]
[1646807433808,8.40497417,2710.1,2710.0,141.4871672]
[1646807434008,4.90497417,2710.1,2710.0,141.4871672]
[1646807434269,6.89215226,2710.1,2710.0,141.4871672]
[1646807434466,10.39215226,2710.1,2710.0,141.4871672]
[1646807435667,6.89215226,2710.1,2710.0,141.4871672]
[1646807435867,10.39215226,2710.1,2710.0,141.4871672]
[1646807436667,10.39215226,2710.1,2710.0,139.06623633]
[1646807438914,10.39215226,2710.1,2710.0,138.96623633]
[1646807440623,6.89215226,2710.1,2710.0,138.96623633]
[1646807441217,5.97755069,2710.1,2710.0,138.96623633]
[1646807441419,6.25137172,2710.1,2710.0,138.96623633]
[1646807443455,4.89560904,2710.1,2710.0,138.96623633]
[1646807444560,6.25137172,2710.1,2710.0,138.96623633]
[1646807446106,4.89560904,2710.1,2710.0,138.96623633]
[1646807447407,6.25137172,2710.1,2710.0,138.96623633]
[1646807447609,4.89560904,2710.1,2710.0,138.96623633]
[1646807447808,6.25137172,2710.1,2710.0,138.96623633]
[1646807450464,4.89560904,2710.1,2710.0,138.96623633]
[1646807450663,6.05447829,2710.1,2710.0,138.96623633]
[1646807451065,6.05447829,2710.1,2710.0,135.96623633]
[1646807451666,9.55447829,2710.1,2710.0,135.96623633]
[1646807451861,6.05447829,2710.1,2710.0,135.96623633]
[1646807452062,6.35447829,2710.1,2710.0,135.96623633]
[1646807452262,6.35447829,2710.1,2710.0,133.54511535]
[1646807453507,4.89560904,2710.1,2710.0,133.54511535]
[1646807453711,6.25283694,2710.1,2710.0,133.54511535]
[1646807454008,4.89560904,2710.1,2710.0,133.54511535]
[1646807454211,6.25283694,2710.1,2710.0,133.54511535]
[1646807455213,7.55283694,2710.1,2710.0,133.54511535]
[1646807456014,6.55283694,2710.1,2710.0,133.54511535]
[1646807456217,6.25283694,2710.1,2710.0,133.54511535]
[1646807457774,7.55283694,2710.1,2710.0,133.54511535]
[1646807457973,6.25283694,2710.1,2710.0,133.54511535]
[1646807458272,4.89560904,2710.1,2710.0,133.54511535]
[1646807459276,4.45060904,2710.1,2710.0,133.54511535]
[1646807460279,5.80870269,2710.1,2710.0,133.54511535]
[1646807461622,5.42330426,2710.1,2710.0,133.54511535]
[1646807462216,4.06521061,2710.1,2710.0,133.54511535]
[1646807463815,4.22407279,2710.1,2710.0,133.54511535]
[1646807464014,5.52407279,2710.1,2710.0,133.54511535]
[1646807464268,9.46907279,2710.1,2710.0,133.54511535]
[1646807464467,11.27822372,2710.1,2710.0,133.54511535]
[1646807464870,9.46907279,2710.1,2710.0,133.54511535]
[1646807465269,23.87859431,2710.1,2710.0,122.46350535]
[1646807465468,23.87859431,2710.1,2710.0,116.64135263]
[1646807465469,25.40404455,2710.1,2710.0,116.64135263]
[1646807465668,25.40404455,2710.1,2710.0,52.51437117]
[1646807465669,28.40404455,2710.1,2710.0,52.51437117]
[1646807465869,28.40404455,2710.1,2710.0,31.12234285]
[1646807466069,28.40404455,2710.1,2710.0,22.56613477]
[1646807466268,28.40404455,2710.1,2710.0,3.47179929]
[1646807466469,29.98309632,2710.1,2710.0,1.39080925]
[1646807466670,6.5,2709.9,2709.5,0.02687162]
[1646807466872,6.5,2709.9,2709.3,0.18729098]
[1646807466873,1.8094689,2709.7,2709.3,0.18729098]
[1646807467071,1.35707952,2709.4,2709.3,0.1844]
[1646807467371,5.60207952,2709.4,2709.3,0.1844]
[1646807467570,5.7609417,2709.4,2709.3,0.1844]
[1646807467770,6.7609417,2709.4,2709.3,0.1844]
[1646807468413,7.6843517,2709.4,2709.3,0.1844]
[1646807470524,5.02727218,2709.4,2709.3,0.1844]
[1646807470820,6.32727218,2709.4,2709.3,0.1844]
[1646807471020,7.6843517,2709.4,2709.3,0.1844]
[1646807471657,6.32727218,2709.4,2709.3,0.1844]
[1646807472659,10.39248279,2709.4,2709.3,0.1844]
[1646807473059,11.74956231,2709.4,2709.3,0.1844]
[1646807473459,11.74956231,2709.4,2709.3,0.10559442]
[1646807473659,11.74956231,2709.4,2708.8,0.02611815]
[1646807473660,1.84721,2709.2,2708.8,0.02611815]
[1646807473862,0.90389367,2709.0,2708.8,0.02611815]
[1646807474061,0.445,2708.9,2708.5,0.4104153]
[1646807474262,1.52755218,2708.9,2708.5,0.4104153]
[1646807474463,1.52755218,2708.9,2708.6,0.04206334]
[1646807475509,1.52755218,2708.9,2708.6,0.04847075]
[1646807475911,3.5,2708.8,2708.7,0.04149491]
[1646807476109,3.945,2708.8,2708.7,0.04149491]
[1646807476510,10.945,2708.8,2708.7,0.04149491]
[1646807476913,14.445,2708.8,2708.7,0.04149491]
[1646807477110,15.745,2708.8,2708.7,0.04149491]
[1646807477513,12.245,2708.8,2708.7,0.04149491]
[1646807477710,15.745,2708.8,2708.7,0.04149491]
[1646807477910,14.32303252,2708.8,2708.7,0.04149491]
[1646807478112,16.01021061,2708.8,2708.7,0.04149491]
[1646807478314,15.01021061,2708.8,2708.7,0.04149491]
[1646807478514,14.56521061,2708.8,2708.7,0.04149491]
[1646807479362,14.56521061,2708.8,2708.7,1.55495132]
[1646807480362,14.56521061,2708.8,2708.7,1.92315132]
[1646807480767,14.56521061,2708.8,2708.7,1.55495132]
[1646807481465,14.56521061,2708.8,2708.7,2.57473583]
[1646807483212,14.56521061,2708.8,2708.7,1.55495132]
[1646807484013,14.56521061,2708.8,2708.7,0.04149491]
[1646807491212,14.56521061,2708.8,2708.5,0.0415153]
[1646807491213,3.5,2708.6,2708.5,0.0415153]
[1646807491416,7.0,2708.6,2708.5,0.0415153]
[1646807491615,7.45886218,2708.6,2708.5,0.0415153]
[1646807491818,8.45886218,2708.6,2708.5,0.0415153]
[1646807492014,10.44604027,2708.6,2708.5,0.0415153]
[1646807492214,12.52407279,2708.6,2708.5,0.0415153]
[1646807493019,13.42690081,2708.6,2708.5,0.0415153]
[1646807493216,12.52407279,2708.6,2708.5,0.0415153]
[1646807493420,12.96907279,2708.6,2708.5,0.0415153]
[1646807493820,8.16907279,2708.6,2708.5,0.0415153]
[1646807494016,8.01021061,2708.6,2708.5,0.0415153]
[1646807496572,4.06521061,2708.6,2708.5,0.0415153]
[1646807499825,7.56521061,2708.6,2708.5,0.0415153]
[1646807501867,7.72407279,2708.6,2708.5,0.0415153]
[1646807502369,4.06521061,2708.6,2708.5,0.0415153]
[1646807507617,4.22358338,2708.6,2708.5,0.0415153]
[1646807511673,4.06521061,2708.6,2708.5,0.0415153]
[1646807515322,4.06521061,2708.6,2708.5,0.04034239]
[1646807518367,4.06521061,2708.6,2708.5,1.2501724]
[1646807519168,4.06521061,2708.6,2708.5,0.04034239]
[1646807521132,4.06521061,2708.6,2708.5,0.04268821]
[1646807527078,4.06521061,2708.6,2708.5,1.55624891]
[1646807527278,4.06521061,2708.6,2708.5,0.04268821]
[1646807527492,4.06521061,2708.6,2708.5,3.04268821]
[1646807527678,4.06521061,2708.6,2708.5,5.05619163]
[1646807528822,4.06521061,2708.6,2708.5,1.55619163]
[1646807536218,0.09340353,2708.8,2708.6,6.5]
[1646807536421,0.1845,2709.4,2708.7,14.51350342]
[1646807536422,0.90248099,2709.3,2708.7,14.51350342]
[1646807536621,0.90248099,2709.3,2708.7,11.51350342]
[1646807536820,0.1844,2709.5,2708.8,1.51350342]
[1646807536821,0.90248099,2709.4,2708.8,1.51350342]
[1646807537021,0.1844,2709.3,2708.9,3.5]
[1646807537223,0.1844,2709.3,2709.1,0.97669216]
[1646807537420,1.08688099,2709.3,2708.7,4.6383]
[1646807537620,0.90248099,2709.3,2708.8,1.51334691]
[1646807538421,0.90248099,2709.1,2708.7,1.1383]
[1646807538621,0.90248099,2709.1,2708.5,0.0487736]
[1646807538823,1.08688099,2709.0,2708.5,0.0487736]
[1646807539020,0.90248099,2709.0,2708.5,0.04268821]
[1646807539295,0.90248099,2709.0,2708.5,0.04877355]
[1646807539593,0.90248099,2708.7,2708.5,0.04877355]
[1646807539995,1.06183879,2708.6,2708.5,0.04877355]
[1646807540195,0.1593578,2708.6,2708.5,0.04268821]
[1646807540396,0.1593578,2708.6,2708.5,0.0487735]
[1646807540795,1.06183879,2708.6,2708.5,0.0487735]
[1646807541197,0.1593578,2708.6,2708.5,0.0487735]
[1646807541398,0.1593578,2708.6,2708.5,0.04268821]
[1646807542795,0.1593578,2708.6,2708.4,0.00608538]
[1646807542796,3.5,2708.5,2708.4,0.00608538]
[1646807544122,0.1593578,2708.6,2708.1,0.03992884]
[1646807544322,0.1593578,2708.6,2708.3,0.00608558]
[1646807545126,0.1593578,2708.6,2708.1,0.03992884]
[1646807545323,0.90248099,2708.7,2708.3,0.00608559]
[1646807546123,0.90248099,2708.7,2708.1,0.03992884]
[1646807546324,0.90248099,2708.7,2708.2,1.51371726]
[1646807546525,0.90248099,2708.7,2708.4,0.00608549]
[1646807546970,0.445,2708.9,2708.4,0.00608549]
[1646807546971,0.90248099,2708.8,2708.4,0.00608549]
[1646807547172,0.90248099,2708.9,2708.4,0.00608549]
[1646807547374,0.90248099,2708.9,2708.1,0.03992884]
[1646807547573,0.90248099,2708.9,2708.2,1.51360804]
[1646807547776,0.90248099,2708.9,2708.5,0.00608529]
[1646807548173,0.1844,2708.8,2708.5,0.00608529]
[1646807548574,0.90248099,2709.0,2708.1,0.03992884]
[1646807548775,0.90248099,2709.0,2708.2,1.51356616]
[1646807548977,0.90248099,2709.0,2708.5,0.00650143]
[1646807549175,0.90248099,2708.9,2708.5,0.00650143]
[1646807549375,0.90248099,2709.0,2708.5,0.00650143]
[1646807549574,0.90248099,2708.9,2708.5,0.00650143]
[1646807549774,0.90248099,2708.9,2708.1,0.03992884]
[1646807549975,0.90248099,2709.0,2708.2,1.51359634]
[1646807550175,0.90248099,2709.0,2708.5,0.00650146]
[1646807551022,0.90248099,2709.0,2708.1,0.03992884]
[1646807551223,0.90248099,2708.9,2708.5,0.00650146]
[1646807552123,0.90248099,2708.9,2708.2,1.23359743]
[1646807552321,0.90248099,2708.9,2708.3,1.51361708]
[1646807552524,0.90248099,2708.8,2708.4,1.51361708]
[1646807552723,1.82606099,2708.8,2708.1,0.03992884]
[1646807552927,1.82606099,2708.8,2708.2,1.51364463]
[1646807553823,1.73377261,2708.8,2708.2,1.51364463]
[1646807554672,0.92358,2708.8,2708.2,1.51364463]
[1646807555480,1.81094299,2709.2,2708.3,10.0]
[1646807555679,1.81094299,2709.3,2708.5,3.0]
[1646807555876,5.8977,2709.7,2709.1,5.5]
[1646807555877,1.35816326,2709.4,2709.1,5.5]
[1646807556076,1.35816326,2709.7,2709.2,3.5]
[1646807556276,1.35816326,2710.0,2709.7,0.00105768]
[1646807556475,1.35816326,2710.1,2709.9,1.21809566]
[1646807556676,5.77452578,2710.3,2709.9,1.21809566]
[1646807556677,3.96366323,2710.3,2709.9,1.21809566]
[1646807556876,3.96366323,2710.3,2710.0,3.5]
[1646807557075,3.72095956,2710.5,2710.0,3.5]
[1646807557475,3.72095956,2710.5,2709.9,1.21809566]
[1646807557676,0.3853944,2710.6,2709.9,5.64075566]
[1646807557941,0.3853944,2710.6,2710.4,1.1172698]
[1646807558944,0.3853944,2710.6,2709.9,4.42266]
[1646807559145,0.3853944,2710.6,2709.9,3.5]
[1646807559344,0.3853944,2710.6,2709.7,0.00105768]
[1646807559345,1.43980326,2711.0,2709.7,3.50105768]
[1646807559745,0.00231178,2710.4,2709.7,3.50105768]
[1646807559947,0.00231178,2710.4,2710.1,1.08740688]
[1646807560748,1.35816326,2711.1,2710.1,1.08740688]
[1646807560947,0.00231178,2710.4,2710.1,1.08740688]
[1646807561770,1.74356569,2711.2,2710.1,1.08740688]
[1646807561970,1.74356569,2711.2,2710.2,3.5]
[1646807562376,0.00231178,2710.4,2710.2,3.5]
[1646807562574,0.00231178,2710.4,2710.1,4.58740688]
[1646807562775,0.00231178,2710.4,2710.2,3.5]
[1646807562976,1.35816326,2711.4,2710.2,3.8682]
[1646807563175,1.35816326,2711.4,2710.9,0.9100212]
[1646807563379,0.00231178,2710.4,2710.2,6.6337]
[1646807563582,1.81086255,2711.7,2710.3,21.6082]
[1646807563779,0.19264472,2712.0,2710.8,3.0]
[1646807563979,4.03103,2712.1,2710.9,3.5]
[1646807564378,3.9493,2712.1,2710.9,3.5]
[1646807564578,3.9493,2712.1,2710.7,3.5]
[1646807564980,4.03108,2712.1,2710.7,3.5]
[1646807565823,2.98698,2712.1,2711.2,1.01787146]
[1646807566025,0.08178,2712.1,2711.2,1.01787146]
[1646807566823,0.92247,2712.2,2711.2,1.01787146]
[1646807567722,1.08056781,2712.2,2711.2,1.01787146]
[1646807568127,1.08056781,2712.2,2710.7,3.5]
[1646807568128,0.002306,2711.8,2710.7,3.5]
[1646807568323,0.924896,2711.8,2710.7,3.5]
[1646807569166,0.92259,2711.8,2710.6,1.1583]
[1646807569370,0.002306,2711.4,2710.9,0.87042887]
[1646807570373,3.58167,2712.0,2710.9,0.87042887]
[1646807570674,0.002306,2711.3,2710.9,0.87042887]
[1646807571477,3.5,2712.0,2710.9,0.87042887]
[1646807571673,0.002306,2711.2,2710.9,0.87042887]
[1646807572674,3.5,2712.0,2710.9,0.87042887]
[1646807572919,0.002306,2711.2,2710.9,0.87042887]
[1646807574020,0.08173,2712.1,2710.9,0.87042887]
[1646807574224,0.002306,2711.2,2710.9,0.87042887]
[1646807575024,1.9269,2712.1,2710.6,1.1583]
[1646807575224,3.5,2712.0,2710.6,1.1583]
[1646807575424,0.002306,2711.2,2710.6,1.1583]
[1646807576227,0.08169,2711.9,2710.6,1.1583]
[1646807576424,0.08169,2711.9,2711.0,0.88912012]
[1646807577678,0.002306,2711.6,2711.0,0.88912012]
[1646807577879,0.002306,2711.6,2710.7,0.9224385]
[1646807578180,0.002306,2711.6,2710.3,2.7176]
[1646807578181,1.08081781,2711.5,2710.3,2.7176]
[1646807578379,1.08081781,2711.5,2710.2,2.7655]
[1646807578380,1.5,2711.2,2710.2,2.7655]
[1646807578981,0.002306,2711.0,2710.7,1.17936865]
[1646807579984,1.5,2711.2,2710.7,1.17936865]
[1646807580183,0.002306,2711.0,2710.7,1.17936865]
[1646807581023,1.5,2711.2,2710.7,1.17936865]
[1646807581228,0.002306,2711.0,2710.7,1.17936865]
[1646807581829,0.002306,2711.0,2710.7,1.10065417]
[1646807582026,0.002306,2711.0,2710.2,2.7655]
[1646807582227,1.5,2711.2,2710.2,2.7655]
[1646807582625,0.002306,2711.0,2710.2,2.7655]
[1646807583626,1.5,2711.2,2710.5,1.11193005]
[1646807586980,1.5,2711.2,2710.1,0.53673005]
[1646807587280,0.00189589,2711.0,2710.4,1.01050243]
[1646807587918,0.00189589,2711.0,2710.4,12.61870243]
[1646807588320,1.5,2711.2,2710.9,1.19124464]
[1646807589724,1.502306,2711.2,2710.9,1.19124464]
[1646807590732,1.5,2711.2,2710.9,1.19124464]
[1646807590926,1.502306,2711.2,2710.9,1.19124464]
[1646807591970,1.5,2711.2,2710.9,1.19124464]
[1646807592172,1.502306,2711.2,2710.9,1.19124464]
[1646807593172,1.5,2711.2,2710.9,1.19124464]
[1646807593374,1.502306,2711.2,2710.9,1.19124464]
[1646807594383,1.5,2711.2,2710.9,1.19124464]
[1646807594578,1.502306,2711.2,2710.9,1.19124464]
[1646807595419,1.502306,2711.2,2710.4,2.2130114]
[1646807596319,1.502306,2711.2,2710.7,1.08694227]
[1646807596719,1.5,2711.2,2710.7,2.37758337]
[1646807596922,0.252306,2711.1,2710.7,2.00938337]
[1646807597120,0.002306,2711.1,2710.7,0.13308337]
[1646807597523,0.002306,2711.1,2710.4,1.8448114]
[1646807597722,0.002306,2711.1,2710.3,1.8449537]
[1646807597921,1.5,2711.2,2710.3,2.2131537]
[1646807598321,0.002306,2710.9,2710.4,11.24]
[1646807599180,1.5,2711.2,2710.5,1.15784706]
[1646807599375,0.002306,2710.8,2710.6,0.9224129]
[1646807600376,1.5,2711.2,2710.6,12.1624129]
[1646807600577,0.002306,2710.8,2710.6,11.24]
[1646807601075,0.002306,2710.8,2710.7,1.51240342]
[1646807601675,1.5,2711.2,2710.8,0.00545452]
[1646807601875,1.5,2711.2,2711.0,1.16584453]
[1646807603122,1.502306,2711.2,2711.0,1.16584453]
[1646807603922,1.5,2711.2,2711.0,1.16584453]
[1646807604323,1.502306,2711.2,2711.0,1.16584453]
[1646807605225,1.5,2711.2,2711.0,1.16584453]
[1646807605425,1.502306,2711.2,2711.0,1.16584453]
[1646807606427,1.5,2711.2,2711.0,1.16584453]
[1646807606681,1.502306,2711.2,2711.0,1.16584453]
[1646807607278,1.502306,2711.2,2710.8,0.00545452]
[1646807607475,1.502306,2711.2,2710.9,1.51233164]
[1646807607476,1.5,2711.2,2710.9,1.51233164]
[1646807607775,1.502306,2711.2,2710.9,1.51233164]
[1646807608676,1.5,2711.2,2710.9,1.51233164]
[1646807609075,1.502306,2711.2,2710.9,1.51233164]
[1646807610076,1.5,2711.2,2710.9,1.51233164]
[1646807610276,1.502306,2711.2,2710.9,1.51233164]
[1646807611117,1.5,2711.2,2710.9,1.51233164]
[1646807611321,1.502306,2711.2,2710.9,1.51233164]
[1646807612320,1.5,2711.2,2710.9,1.51233164]
[1646807612720,1.502306,2711.2,2710.9,1.51233164]
[1646807613620,1.5,2711.2,2710.9,1.51233164]
[1646807613819,1.502306,2711.2,2710.9,1.51233164]
[1646807614680,1.5,2711.2,2710.9,1.51233164]
[1646807615085,1.502306,2711.2,2710.9,1.51233164]
[1646807615881,1.5,2711.2,2710.9,1.51233164]
[1646807616280,1.502306,2711.2,2710.9,1.51233164]
[1646807617081,1.5,2711.2,2710.9,1.51233164]
[1646807617485,1.502306,2711.2,2710.9,1.51233164]
[1646807618323,1.5,2711.2,2710.9,1.51233164]
[1646807618523,1.502306,2711.2,2710.9,1.51233164]
[1646807619325,1.502306,2711.2,2710.9,2.43464664]
[1646807619525,1.5,2711.2,2711.0,1.51233164]
[1646807621028,1.502306,2711.2,2711.0,1.51233164]
[1646807622071,1.5,2711.2,2711.0,12.75233164]
[1646807622270,1.502306,2711.2,2711.1,1.51233164]
[1646807623273,1.5,2711.2,2711.1,1.51233164]
[1646807626822,1.5,2711.2,2711.0,1.51233164]
[1646807627426,1.5,2711.2,2711.1,1.51233164]
[1646807627622,1.5,2711.2,2710.9,1.51233164]
[1646807628225,1.502306,2711.2,2710.9,1.51233164]
[1646807628427,0.474339,2711.2,2710.9,1.51233164]
[1646807629187,0.472033,2711.2,2710.9,1.51233164]
[1646807629377,0.474339,2711.2,2710.9,1.51233164]
[1646807629977,0.474339,2711.2,2710.9,12.75233164]
[1646807630179,0.474339,2711.2,2711.0,1.51233164]
[1646807630379,0.472033,2711.2,2711.0,1.51233164]
[1646807630583,0.474339,2711.2,2711.0,1.51233164]
[1646807631180,0.474339,2711.2,2711.1,1.51233164]
[1646807631481,0.474339,2711.2,2711.0,2.43465864]
[1646807631679,0.472033,2711.2,2711.1,1.51233164]
[1646807633025,1.1488,2711.7,2711.4,0.87899403]
[1646807633224,0.89567922,2711.9,2711.5,1.51233164]
[1646807633623,0.89567922,2712.0,2711.5,1.51233164]
[1646807634822,0.89567922,2711.9,2711.4,0.87899403]
[1646807635023,0.89567922,2711.9,2711.4,2.05449403]
[1646807635325,0.89567922,2711.9,2711.3,0.9222448]
[1646807635522,0.89567922,2711.9,2711.4,1.5120519]
[1646807635728,4.39798522,2711.8,2711.2,0.65998577]
[1646807636025,0.89798522,2711.8,2711.3,1.51209522]
[1646807636222,0.002306,2711.8,2711.3,1.51209522]
[1646807636423,3.5,2711.9,2711.2,0.65998577]
[1646807636681,1.94482396,2712.2,2711.2,0.65998577]
[1646807636682,0.002306,2711.7,2711.3,1.51203738]
[1646807637673,3.5,2712.0,2711.3,1.51203738]
[1646807637970,0.002306,2711.6,2711.3,1.51203738]
[1646807638771,0.90453813,2711.8,2711.3,1.51203738]
[1646807638972,0.00186096,2711.6,2711.3,1.51203738]
[1646807640076,0.90453813,2711.6,2711.2,0.65998577]
[1646807640278,0.90639909,2711.6,2711.2,0.65998577]
[1646807640523,3.5,2711.5,2711.2,0.65998577]
[1646807640819,4.40453813,2711.5,2711.2,0.65998577]
[1646807641023,0.90453813,2711.5,2711.2,0.65998577]
[1646807641222,0.00186096,2711.6,2711.2,0.65998577]
[1646807641223,0.90453813,2711.6,2711.2,0.65998577]
[1646807641423,3.50186096,2711.5,2711.2,0.65998577]
[1646807641621,0.00186096,2711.5,2711.2,0.65998577]
[1646807642424,3.5,2711.7,2711.2,0.65998577]
[1646807642622,0.00186096,2711.5,2711.2,0.65998577]
[1646807643425,0.00186096,2711.5,2711.3,0.9713936]
[1646807643628,1.34229821,2711.8,2711.3,0.9713936]
[1646807643828,0.00192555,2711.5,2711.3,0.9713936]
[1646807644879,1.34229821,2712.0,2711.3,0.9713936]
[1646807645081,0.00192555,2711.5,2711.3,0.9713936]
[1646807646082,1.34229821,2712.0,2711.3,0.9713936]
[1646807646282,0.00192555,2711.5,2711.3,0.9713936]
[1646807647281,1.34229821,2712.0,2711.2,0.65998577]
[1646807647480,0.00191617,2711.5,2711.2,0.65998577]
[1646807647682,0.00191617,2711.5,2711.3,1.5120302]
[1646807648522,1.34229821,2712.0,2711.3,1.5120302]
[1646807648722,0.00191617,2711.5,2711.3,1.5120302]
[1646807649728,0.0816,2712.1,2711.3,1.5120302]
[1646807649930,0.0816,2712.1,2711.5,0.9717003]
[1646807650934,1.58362634,2712.2,2711.5,0.9717003]
[1646807651231,1.50155634,2712.2,2711.5,0.9717003]
[1646807651435,0.15925813,2712.2,2711.6,1.51193246]
[1646807652287,0.15925813,2712.2,2711.5,0.9717003]
[1646807652288,1.50155634,2712.2,2711.5,0.9717003]
[1646807652789,1.34229821,2712.2,2711.5,0.9717003]
[1646807653187,1.34229821,2712.3,2711.5,0.9717003]
[1646807653387,0.00191754,2712.0,2711.5,0.9717003]
[1646807654393,1.34229821,2712.3,2711.5,0.9717003]
[1646807654594,0.00206858,2711.9,2711.5,0.9717003]
[1646807655626,1.34229821,2712.3,2711.6,1.5119479]
[1646807655824,1.34229821,2712.3,2711.3,1.2415]
[1646807655825,0.00206858,2711.8,2711.3,1.2415]
[1646807656024,0.00206858,2711.8,2711.4,1.51195374]
[1646807656825,1.34229821,2712.2,2711.5,1.05447959]
[1646807657025,3.74393673,2712.4,2711.6,1.51195374]
[1646807657026,1.34229821,2712.3,2711.6,1.51195374]
[1646807657226,3.74393673,2712.4,2711.6,1.51195374]
[1646807657227,0.00206858,2711.7,2711.6,1.51195374]
[1646807658129,1.34229821,2712.2,2711.6,1.51195374]
[1646807658327,0.00189568,2711.8,2711.6,1.51195374]
[1646807659198,1.34229821,2712.3,2711.6,1.51195374]
[1646807659399,0.00189568,2711.8,2711.6,1.51195374]
[1646807660501,1.34229821,2712.3,2711.6,1.51195374]
[1646807660701,0.00189568,2711.8,2711.6,1.51195374]
[1646807660902,0.00189568,2711.8,2711.3,2.16378]
[1646807661103,0.00189568,2711.8,2711.4,1.51199751]
[1646807661601,4.84229821,2712.0,2711.4,1.51199751]
[1646807661904,0.00192076,2711.7,2711.4,1.51199751]
[1646807662920,3.5,2711.9,2711.4,1.51199751]
[1646807663122,0.00192076,2711.7,2711.4,1.51199751]
[1646807664125,1.34229821,2712.0,2711.4,1.51199751]
[1646807664327,0.00192076,2711.7,2711.4,1.51199751]
[1646807665228,1.34229821,2712.2,2711.4,1.51199751]
[1646807665428,0.00191714,2711.7,2711.4,1.51199751]
[1646807666430,1.34229821,2712.2,2711.4,1.51199751]
[1646807666674,0.00191714,2711.7,2711.4,1.51199751]
[1646807667675,1.34229821,2712.2,2711.4,1.51199751]
[1646807667875,0.00191714,2711.7,2711.4,1.51199751]
[1646807668877,1.34229821,2712.2,2711.4,1.51199751]
[1646807669178,0.00191766,2711.7,2711.4,1.51199751]
[1646807670082,4.92500821,2712.3,2711.4,1.51199751]
[1646807670428,1.42500821,2712.3,2711.7,0.97105002]
[1646807670627,1.42500821,2712.3,2711.8,1.51183401]
[1646807670628,0.08271,2712.3,2711.8,1.51183401]
[1646807671330,5.24929821,2712.6,2711.9,0.13717637]
[1646807671530,5.24929821,2712.6,2712.3,1.0789442]
[1646807671531,3.807,2712.6,2712.3,1.0789442]
[1646807671726,0.00766902,2712.8,2712.3,0.9219198]
[1646807671926,0.00766902,2712.8,2712.0,1.8438396]
[1646807672126,0.00766902,2712.8,2712.1,1.51154323]
[1646807672527,1.34229821,2712.9,2712.1,1.51154323]
[1646807672729,1.34461459,2712.9,2712.1,1.51154323]
[1646807673526,1.34229821,2712.9,2712.1,1.51154323]
[1646807673928,1.25014595,2712.9,2712.1,1.51154323]
[1646807674574,1.25014595,2712.9,2712.1,2.74640982]
[1646807674877,3.5,2713.1,2712.1,1.23486659]
[1646807675074,0.08400638,2713.0,2712.1,1.23486659]
[1646807675275,0.08400638,2713.0,2712.2,1.51157116]
[1646807675877,0.08400638,2713.0,2712.1,1.23486659]
[1646807676075,0.08169,2713.0,2712.1,1.23486659]
[1646807676277,0.00217986,2712.7,2712.0,1.8438396]
[1646807676576,0.00217986,2712.7,2711.9,1.38047637]
[1646807677176,6.28556583,2712.9,2711.9,1.38047637]
[1646807677378,6.28556583,2712.9,2711.6,2.7769]
[1646807677578,0.00217986,2712.4,2711.6,2.7769]
[1646807678424,3.5,2712.5,2711.7,1.51186827]
[1646807678623,0.16093092,2712.6,2711.6,2.7769]
[1646807678624,0.00217986,2712.1,2711.6,2.7769]
[1646807678825,0.00217986,2712.1,2711.7,1.51187365]
[1646807679627,0.16093092,2712.6,2711.7,1.51187365]
[1646807680031,0.00187975,2712.0,2711.7,1.51187365]
[1646807680829,0.16093092,2712.6,2711.7,1.51187365]
[1646807681027,0.00187975,2712.0,2711.7,1.51187365]
[1646807682075,4.5,2712.7,2711.7,1.51187365]
[1646807682277,0.00187975,2712.0,2711.7,1.51187365]
[1646807682478,0.00187975,2712.0,2711.8,0.86611907]
[1646807682679,0.00187975,2712.0,2711.9,1.51187365]
[1646807683279,3.58167,2712.7,2711.9,1.51187365]
[1646807683478,0.00192334,2712.1,2711.9,1.51187365]
[1646807683680,0.00192334,2712.1,2711.7,1.1861]
[1646807683879,0.00192334,2712.1,2711.8,1.51185708]
[1646807684483,3.58167,2712.7,2711.8,2.66802107]
[1646807684686,0.00192334,2712.1,2711.9,1.51185708]
[1646807685723,3.58167,2712.7,2711.7,1.1861]
[1646807685925,0.00192334,2712.1,2711.8,1.51185761]
[1646807686825,0.08167,2712.7,2711.9,12.162066]
[1646807687023,2.54623247,2712.9,2711.9,12.162066]
[1646807687224,0.00191701,2712.1,2711.9,12.162066]
[1646807687625,0.00191701,2712.1,2711.7,2.36691561]
[1646807687928,0.00191701,2712.1,2711.8,1.51182766]
[1646807688123,4.85523247,2712.8,2711.8,1.51182766]